bitfinex/quotes_ETHUSD_20250608
["timestamp","ask_amount","ask_price","bid_price","bid_amount"]
[1749421057378,2.092,2526.0,2525.9,3.95898491]
[1749421057669,7.147,2526.0,2525.9,3.95898491]
[1749421058038,3.95824572,2526.4,2525.9,3.95898491]
[1749421058248,7.696,2526.3,2526.0,3.95879703]
[1749421058568,0.55,2526.4,2526.0,5.23979384]
[1749421058754,7.146,2526.2,2526.0,8.00238446]
[1749421059270,7.146,2526.2,2526.1,3.95866839]
[1749421059511,7.146,2526.2,2525.9,3.95891387]
[1749421059873,7.146,2526.2,2526.0,3.95882497]
[1749421060278,7.146,2526.2,2526.0,1.27388787]
[1749421060474,7.146,2526.2,2526.1,3.95867146]
[1749421060890,7.146,2526.2,2526.0,5.23264247]
[1749421061078,2.8558,2526.5,2526.1,3.95865811]
[1749421061304,7.144,2526.4,2526.0,1.27388787]
[1749421061508,7.144,2526.4,2525.8,4.82094208]
[1749421061700,7.144,2526.4,2525.8,8.7799768]
[1749421061891,7.144,2526.4,2525.9,3.95894973]
[1749421061892,11.10222502,2526.4,2525.9,3.95894973]
[1749421062613,11.10228063,2526.4,2525.8,4.82094208]
[1749421062793,11.10228063,2526.4,2525.9,4.83696319]
[1749421063932,5.33426759,2526.3,2525.6,16.40436421]
[1749421064231,3.9586018,2526.2,2525.6,20.36367161]
[1749421064390,4.89084525,2526.2,2525.6,20.36367161]
[1749421064586,3.95869311,2526.1,2525.6,20.36367161]
[1749421064786,7.143,2526.0,2525.6,20.36367161]
[1749421065431,8.07998138,2526.0,2525.6,20.36367161]
[1749421065800,3.95899845,2525.9,2525.6,0.40436421]
[1749421066002,7.143,2526.0,2525.6,16.40436421]
[1749421066316,0.55,2525.7,2525.0,0.7816]
[1749421066515,8.07886359,2525.6,2525.3,3.95984801]
[1749421066719,0.93686359,2525.5,2525.3,20.75183994]
[1749421066910,7.142,2525.6,2525.3,20.75183994]
[1749421067106,0.93885218,2525.5,2525.3,20.75183994]
[1749421067307,0.93931304,2525.4,2525.3,20.75183994]
[1749421067604,7.142,2525.6,2525.4,3.95970143]
[1749421067822,0.93931882,2525.5,2525.4,3.95970143]
[1749421068017,0.93931882,2525.5,2525.3,20.75185512]
[1749421068333,0.93985952,2525.4,2525.3,20.75185512]
[1749421072136,0.93985952,2525.4,2525.3,24.7954972]
[1749421073547,8.07885952,2525.4,2525.3,24.7954972]
[1749421076462,0.93985952,2525.4,2525.3,24.7954972]
[1749421076758,7.137,2525.6,2525.5,3.95961195]
[1749421077056,1.1645639,2525.8,2525.7,3.95929841]
[1749421077247,1.1645639,2525.9,2525.8,3.95914165]
[1749421077448,9.24300088,2525.9,2525.8,3.95914165]
[1749421078044,9.61058306,2525.9,2525.8,3.95914165]
[1749421078267,9.24300088,2525.9,2525.8,3.95914165]
[1749421078841,9.61058784,2525.9,2525.8,3.95914165]
[1749421079169,9.61058613,2525.9,2525.8,3.95914165]
[1749421079376,9.61058266,2525.9,2525.8,3.95914165]
[1749421079669,9.61066627,2525.9,2525.8,3.95914165]
[1749421079871,9.24300088,2525.9,2525.8,3.95914165]
[1749421080736,9.61067387,2525.9,2525.8,3.95914165]
[1749421081068,9.61062639,2525.9,2525.8,9.06794996]
[1749421081269,0.94143698,2525.9,2525.8,9.06794996]
[1749421081471,0.94143698,2525.9,2525.8,9.82904996]
[1749421084336,0.94143698,2525.9,2525.8,8.76388373]
[1749421084963,0.94143698,2525.9,2525.8,8.00278373]
[1749421086884,0.94143698,2525.9,2525.8,3.95914165]
[1749421089383,7.13,2526.0,2525.9,3.95898491]
[1749421089681,0.94147418,2526.0,2525.9,3.95898491]
[1749421089887,8.07147418,2526.0,2525.9,3.95898491]
[1749421090381,3.2505639,2526.4,2526.2,3.95842777]
[1749421090584,8.07053788,2526.3,2526.2,3.95851476]
[1749421090746,8.43820865,2526.3,2526.2,3.95851476]
[1749421091187,1.30920865,2526.3,2526.2,3.95851476]
[1749421091686,0.94153788,2526.3,2526.2,3.95851476]
[1749421091879,0.94153788,2526.3,2526.2,5.10443857]
[1749421092480,7.128,2526.4,2526.2,5.10443857]
[1749421092481,7.128,2526.4,2526.3,3.95835807]
[1749421092685,0.94135791,2526.4,2526.3,8.00200015]
[1749421093286,1.30897894,2526.4,2526.3,8.00200015]
[1749421093486,0.94135791,2526.4,2526.3,8.00200015]
[1749421093671,0.94135791,2526.4,2526.3,8.79200015]
[1749421093849,0.94135791,2526.6,2526.5,3.95804472]
[1749421094493,1.3089828,2526.6,2526.5,3.95804472]
[1749421094686,0.94135791,2526.6,2526.5,3.95804472]
[1749421096063,8.06835791,2526.6,2526.4,3.95808514]
[1749421096390,7.127,2526.6,2526.4,3.95820139]
[1749421096690,7.127,2526.6,2526.4,3.95819477]
[1749421097894,7.127,2526.6,2526.5,3.95804472]
[1749421098099,8.06741303,2526.6,2526.5,3.95804472]
[1749421098551,8.06432647,2526.6,2526.4,3.95809962]
[1749421099172,8.06432647,2526.6,2526.5,3.95804472]
[1749421099787,8.06432647,2526.6,2526.4,3.9581192]
[1749421101590,0.8156,2526.5,2526.2,3.95850154]
[1749421101768,1.75583239,2526.5,2526.2,3.95850154]
[1749421101951,1.18300745,2526.5,2526.2,3.95850154]
[1749421102154,0.94021897,2526.4,2526.2,3.95850154]
[1749421102394,0.94021897,2526.4,2526.0,3.95874482]
[1749421102584,0.94021897,2526.4,2525.9,16.0]
[1749421102998,0.94021897,2526.4,2526.2,3.95842098]
[1749421103599,0.94021897,2526.5,2526.4,3.95820139]
[1749421108899,0.94021897,2526.5,2526.4,8.00184347]
[1749421111310,0.66666667,2526.7,2526.6,3.95788807]
[1749421111311,7.78266667,2526.7,2526.6,3.95788807]
[1749421111506,1.60807876,2526.7,2526.6,8.00153015]
[1749421111869,1.60807876,2526.7,2526.1,0.8326]
[1749421111870,2.59802744,2526.7,2526.1,0.8326]
[1749421112073,1.30915162,2526.6,2526.5,8.0016868]
[1749421112287,0.66666667,2526.7,2526.6,4.79048807]
[1749421116041,0.66666667,2526.7,2526.6,3.95788807]
[1749421117525,5.27100082,2526.6,2526.1,3.95856148]
[1749421117721,8.41967006,2526.5,2525.9,4.81704208]
[1749421117930,7.111,2526.5,2526.3,3.95824602]
[1749421119339,0.94159237,2526.4,2526.3,3.95824602]
[1749421119711,3.95836063,2526.3,2525.8,3.95900404]
[1749421119913,8.81469237,2526.2,2525.8,3.95900404]
[1749421120112,7.8731,2526.2,2525.8,3.95900404]
[1749421120437,0.94151183,2526.1,2525.7,3.95915436]
[1749421120637,0.94151183,2526.0,2525.7,3.95915436]
[1749421120941,3.95873609,2526.1,2525.5,4.04364208]
[1749421121235,1.30934802,2526.0,2525.6,3.95945062]
[1749421121435,0.94152434,2525.9,2525.7,3.95920695]
[1749421121628,7.109,2525.8,2525.7,3.95920695]
[1749421123341,7.109,2525.8,2525.7,8.00284903]
[1749421124717,0.7694,2525.7,2524.9,0.7881]
[1749421124920,1.70989018,2525.7,2525.3,3.95984569]
[1749421125116,0.7694,2525.7,2525.2,3.96006365]
[1749421125321,1.70938824,2525.7,2525.2,19.96006365]
[1749421125516,1.70938824,2525.7,2525.3,3.9597951]
[1749421125849,1.70938824,2525.7,2525.4,3.95974078]
[1749421126255,0.7694,2525.7,2525.4,3.95974078]
[1749421126557,1.4694,2525.7,2525.4,3.95974078]
[1749421126754,0.55,2525.6,2524.6,3.9609383]
[1749421126955,0.55,2525.4,2525.0,3.9603041]
[1749421127117,7.8823,2525.3,2525.1,3.96022951]
[1749421127318,7.8823,2525.3,2525.2,3.96008236]
[1749421127624,7.107,2525.3,2525.2,3.96008236]
[1749421128038,7.107,2525.3,2525.2,6.75647776]
[1749421128440,7.007,2525.3,2525.2,6.75647776]
[1749421128638,7.007,2525.3,2525.1,3.96017296]
[1749421129058,7.007,2525.3,2524.7,4.83154208]
[1749421129242,0.7753,2525.2,2524.8,3.96070975]
[1749421129446,0.7753,2525.2,2524.5,0.7879]
[1749421129764,0.7753,2525.0,2524.5,3.96106803]
[1749421129946,7.106,2524.9,2524.2,4.83154208]
[1749421130119,7.106,2524.9,2524.4,3.96132995]
[1749421130120,13.13362058,2524.9,2524.4,3.96132995]
[1749421130320,1.39089206,2524.8,2524.4,3.96132995]
[1749421130560,13.13362058,2524.9,2524.4,3.96132995]
[1749421130746,13.13362058,2524.9,2524.3,3.96141436]
[1749421130949,4.73608885,2524.8,2524.1,0.6376]
[1749421131152,4.73608885,2524.8,2524.3,3.96147854]
[1749421131523,3.7753,2524.8,2524.3,3.96147854]
[1749421132324,3.7753,2524.8,2524.1,0.6376]
[1749421132325,4.51097396,2524.7,2524.1,16.6376]
[1749421132529,0.55,2524.5,2524.1,20.59933176]
[1749421132852,0.794,2524.2,2524.1,0.6376]
[1749421135351,0.55,2524.2,2524.1,0.6376]
[1749421135676,5.29315121,2524.2,2524.1,0.6376]
[1749421135832,7.54018201,2524.2,2524.1,0.6376]
[1749421136580,10.54018201,2524.2,2524.1,0.6376]
[1749421138474,0.55,2523.3,2523.0,3.96344038]
[1749421138676,0.55,2523.3,2523.1,3.96332585]
[1749421139666,7.8851,2523.4,2523.1,3.96332585]
[1749421140890,7.8851,2523.4,2523.3,4.04364208]
[1749421141192,7.104,2523.4,2523.3,8.00670632]
[1749421143471,2.068,2523.7,2523.6,3.96259312]
[1749421143674,9.17,2523.7,2523.6,8.0062352]
[1749421145790,6.20876861,2524.2,2524.0,3.96196513]
[1749421145791,0.7577,2524.1,2524.0,3.96196513]
[1749421145956,7.8587,2524.1,2524.0,3.96196513]
[1749421146287,7.8587,2524.1,2523.9,3.96212211]
[1749421146288,10.5587,2524.1,2523.9,3.96212211]
[1749421146590,7.8587,2524.1,2523.9,3.96212211]
[1749421147486,7.8587,2524.1,2523.8,3.96219674]
[1749421147693,7.8587,2524.1,2523.9,3.96209747]
[1749421147989,2.057,2524.2,2524.1,3.96180816]
[1749421148284,9.157,2524.2,2524.0,3.96188626]
[1749421150870,2.057,2524.2,2524.1,3.96180816]
[1749421151043,9.155,2524.2,2524.1,3.96180816]
[1749421151377,1.3294,2523.9,2523.2,16.0]
[1749421151586,7.098,2523.8,2523.5,3.9626664]
[1749421151747,7.098,2523.8,2523.6,3.96257497]
[1749421152177,4.98435405,2524.2,2523.7,4.7228361]
[1749421152375,7.097,2524.1,2523.7,4.04364208]
[1749421152538,7.097,2524.1,2523.5,8.00637465]
[1749421152744,7.097,2524.1,2523.7,3.96242394]
[1749421153567,8.02816405,2524.1,2523.7,3.96242394]
[1749421153763,10.0306431,2524.1,2523.7,3.96242394]
[1749421154389,0.93116405,2524.0,2523.7,3.96242394]
[1749421155002,0.93116405,2524.0,2523.8,3.96227118]
[1749421155199,9.09947905,2524.1,2523.7,3.96235988]
[1749421155364,0.93607045,2524.0,2523.7,3.96235988]
[1749421155564,0.93607043,2523.9,2523.7,3.96235988]
[1749421155905,0.93607043,2524.0,2523.8,3.96214283]
[1749421156067,0.93607043,2523.9,2523.8,3.96214283]
[1749421156660,0.93607043,2524.0,2523.9,3.96212211]
[1749421159212,8.02907043,2524.0,2523.9,3.96212211]
[1749421160121,8.02907043,2524.0,2523.9,8.00576419]
[1749421160267,0.93607043,2524.0,2523.9,9.97716584]
[1749421160464,9.149,2524.2,2524.1,3.96180816]
[1749421160662,10.08899837,2524.2,2524.1,8.00545024]
[1749421160889,8.03199837,2524.2,2524.1,8.00545024]
[1749421161113,0.93999837,2524.2,2524.1,28.18964144]
[1749421161271,1.168402,2524.6,2524.5,3.96118043]
[1749421161472,8.03250328,2524.6,2524.5,3.96118043]
[1749421162071,4.51128377,2524.5,2524.1,16.0]
[1749421162269,0.94050328,2524.4,2524.1,16.0]
[1749421162493,0.94050328,2524.3,2524.1,19.96177723]
[1749421162803,8.03050328,2524.2,2524.1,19.96177723]
[1749421165504,7.09,2524.2,2524.1,19.96177723]
[1749421168506,1.17474805,2524.7,2524.2,0.7705]
[1749421168708,8.02563733,2524.6,2524.5,3.96118043]
[1749421169011,0.93963733,2524.6,2524.5,3.96118043]
[1749421169208,8.02563733,2524.6,2524.5,3.96118043]
[1749421171519,8.02563733,2524.6,2524.4,3.96124537]
[1749421171671,7.086,2524.6,2524.4,3.96124537]
[1749421173703,7.086,2524.6,2524.5,3.96118043]
[1749421173907,0.93972348,2524.6,2524.5,3.96118043]
[1749421174105,8.02172348,2524.6,2524.5,3.96118043]
[1749421174631,8.02181793,2524.6,2524.5,3.96118043]
[1749421174978,8.02181793,2524.6,2524.3,8.0050528]
[1749421175184,7.082,2524.6,2524.3,8.0050528]
[1749421175404,7.082,2524.6,2524.4,3.96131973]
[1749421175610,8.02182024,2524.6,2524.4,3.96131973]
[1749421175816,7.082,2524.6,2524.4,3.96131973]
[1749421176932,0.93997396,2524.8,2524.5,3.96110675]
[1749421177136,7.08,2524.7,2524.5,3.96110675]
[1749421177334,7.08,2524.7,2524.4,3.96127639]
[1749421177533,7.08,2524.7,2524.5,3.96110174]
[1749421178233,7.08,2524.7,2524.6,3.96102352]
[1749421178440,7.08,2524.7,2524.5,3.96105552]
[1749421178945,0.93995944,2524.8,2524.7,3.96086663]
[1749421179251,7.078,2524.8,2524.7,3.96086663]
[1749421180906,7.9903,2524.8,2524.4,3.96127694]
[1749421181742,7.9903,2524.8,2524.5,3.96115687]
[1749421182611,8.6903,2524.8,2524.5,3.96115687]
[1749421183362,8.6903,2524.8,2524.4,3.96126844]
[1749421183573,8.6903,2524.8,2524.5,3.96115704]
[1749421184278,8.6903,2524.8,2524.5,3.96114375]
[1749421184279,7.778,2524.8,2524.5,3.96114375]
[1749421184842,7.778,2524.8,2524.3,20.73092686]
[1749421184843,8.5556,2524.8,2524.3,16.7695]
[1749421185074,8.5556,2524.8,2524.5,3.96117071]
[1749421186050,8.5556,2524.8,2524.4,3.96124566]
[1749421186255,8.5556,2524.8,2524.5,3.96114534]
[1749421189564,0.94184417,2524.7,2524.5,3.96114534]
[1749421189741,8.5556,2524.8,2524.5,3.96114534]
[1749421189925,0.94183731,2524.7,2524.5,3.96114534]
[1749421190121,8.5556,2524.8,2524.5,3.96114534]
[1749421190321,0.94184621,2524.7,2524.5,3.96114534]
[1749421190557,8.5556,2524.8,2524.5,3.96114534]
[1749421190766,0.94195574,2524.7,2524.5,3.96114534]
[1749421190967,7.8556,2524.8,2524.5,3.96114534]
[1749421191272,0.94195574,2524.7,2524.5,3.96114534]
[1749421191433,7.8556,2524.8,2524.5,3.96114534]
[1749421191629,0.94196945,2524.7,2524.5,3.96114534]
[1749421191835,7.8556,2524.8,2524.5,3.96114534]
[1749421192146,0.94193871,2524.7,2524.5,3.96114534]
[1749421192356,7.8556,2524.8,2524.5,3.96114534]
[1749421192552,0.94194401,2524.7,2524.5,3.96114534]
[1749421192784,7.8556,2524.8,2524.6,3.96100868]
[1749421192990,0.9419839,2524.7,2524.6,3.96100868]
[1749421193455,7.8556,2524.8,2524.6,3.96100868]
[1749421195569,0.94221984,2524.7,2524.6,3.96100868]
[1749421197552,8.00621984,2524.7,2524.6,3.96100868]
[1749421199982,8.00462141,2524.7,2524.4,3.96133734]
[1749421200163,4.02707677,2525.0,2524.8,3.96060397]
[1749421200372,1.31089214,2524.9,2524.8,3.96070975]
[1749421200554,8.00460513,2524.9,2524.8,3.96070975]
[1749421200883,3.22227677,2525.3,2524.7,8.00448098]
[1749421201180,0.94273986,2525.2,2525.1,3.96009801]
[1749421201350,1.56413404,2525.6,2525.4,3.95966576]
[1749421201351,1.17827677,2525.6,2525.4,3.95966576]
[1749421201536,8.00351123,2525.5,2525.4,3.95966576]
[1749421201743,0.94251123,2525.5,2525.4,3.95966576]
[1749421202084,4.3108865,2525.5,2525.4,3.95966576]
[1749421202376,11.00351123,2525.5,2525.4,3.95966576]
[1749421202972,3.94251123,2525.5,2525.4,3.95966576]
[1749421203137,3.0,2525.5,2525.4,3.95966576]
[1749421203340,10.06,2525.5,2525.4,3.95966576]
[1749421203643,11.00150001,2525.5,2525.4,3.95966576]
[1749421203842,0.94153506,2525.7,2525.6,3.95945517]
[1749421204163,7.059,2525.7,2525.6,3.95945517]
[1749421204365,7.059,2525.7,2525.6,3.95939555]
[1749421204682,7.059,2525.7,2525.5,3.9595331]
[1749421205686,2.39865815,2525.9,2525.5,3.9595331]
[1749421205867,7.057,2525.6,2525.5,3.9595331]
[1749421207310,2.97130514,2525.9,2525.5,3.9595331]
[1749421207467,7.056,2525.8,2525.7,3.95928187]
[1749421207673,10.056,2525.8,2525.7,3.95928187]
[1749421208414,10.056,2525.8,2525.6,3.95939728]
[1749421208865,7.056,2525.8,2525.6,3.95939728]
[1749421209250,0.93972439,2526.1,2525.7,4.04364208]
[1749421209454,2.031,2526.4,2526.0,3.95870008]
[1749421209757,7.42171087,2526.3,2526.0,3.95870008]
[1749421209900,7.054,2526.3,2526.0,3.95870008]
[1749421210098,7.053,2526.2,2526.1,3.95864777]
[1749421210277,2.031,2526.4,2526.0,3.95874804]
[1749421210477,7.053,2526.2,2526.0,3.95874804]
[1749421212606,7.053,2526.2,2525.8,4.77808034]
[1749421213717,7.053,2526.2,2526.0,3.95876291]
[1749421214105,7.053,2526.2,2525.8,4.7780906]
[1749421214106,7.053,2526.2,2525.9,3.95893477]
[1749421214308,7.049,2526.1,2525.9,3.95893477]
[1749421214605,7.049,2526.1,2526.0,3.95882818]
[1749421215520,7.048,2526.3,2526.1,3.95857151]
[1749421215720,7.048,2526.3,2526.0,3.95875545]
[1749421216286,7.048,2526.3,2526.1,3.95862412]
[1749421216486,7.048,2526.3,2526.0,3.95875338]
[1749421217263,7.048,2526.3,2526.1,3.95866238]
[1749421217832,0.9079,2526.2,2525.8,4.77813507]
[1749421218001,7.048,2526.3,2526.0,3.95882121]
[1749421219028,7.048,2526.3,2525.8,0.819]
[1749421219227,7.048,2526.3,2525.9,3.95891121]
[1749421219818,7.048,2526.3,2526.0,3.95882282]
[1749421220322,7.048,2526.3,2526.2,3.95851476]
[1749421223228,7.048,2526.3,2526.1,3.9585761]
[1749421223539,7.048,2526.3,2526.0,3.95874923]
[1749421223846,7.048,2526.3,2526.1,3.9586575]
[1749421224700,7.048,2526.3,2526.2,3.95851476]
[1749421225391,7.048,2526.3,2526.1,3.95864151]
[1749421225597,8.03919,2526.3,2526.1,3.95864151]
[1749421225900,8.03919,2526.3,2526.2,3.95851476]
[1749421227919,2.69666667,2526.6,2526.4,3.95820139]
[1749421228131,2.69666667,2526.6,2526.5,3.95804472]
[1749421228427,2.69666667,2526.6,2526.5,4.74174472]
[1749421228647,9.73366667,2526.6,2526.5,4.74174472]
[1749421229029,0.66666667,2526.6,2526.5,4.74174472]
[1749421229229,7.70266667,2526.6,2526.5,4.74174472]
[1749421230348,7.70266667,2526.6,2526.5,3.95804472]
[1749421231055,9.46803334,2526.6,2525.9,3.95898491]
[1749421231258,4.50817876,2526.5,2525.8,0.8058]
[1749421231419,0.94060685,2526.4,2525.9,3.95898491]
[1749421231614,0.94060685,2526.3,2526.1,3.95859051]
[1749421231816,9.064,2526.2,2526.1,3.95859051]
[1749421232143,9.43136855,2526.2,2526.1,3.95859051]
[1749421232345,9.43203474,2526.2,2526.1,3.95859051]
[1749421232545,9.43203753,2526.2,2526.1,3.95859051]
[1749421232857,9.064,2526.2,2526.1,3.95859051]
[1749421233023,9.43203764,2526.2,2526.1,3.95859051]
[1749421233223,9.43203741,2526.2,2526.1,3.95859051]
[1749421233444,9.43203937,2526.2,2526.1,3.95859051]
[1749421234155,10.00517533,2526.2,2526.1,3.95859051]
[1749421234453,10.37324079,2526.2,2526.1,3.95859051]
[1749421234760,10.37324075,2526.2,2526.1,3.95859051]
[1749421235457,10.27324075,2526.2,2526.1,3.95859051]
[1749421235749,10.27324179,2526.2,2526.1,3.95859051]
[1749421235951,10.27324345,2526.2,2526.1,3.95859051]
[1749421236176,9.90517533,2526.2,2526.1,3.95859051]
[1749421237326,10.27324432,2526.2,2526.1,3.95859051]
[1749421237571,9.90517533,2526.2,2526.1,3.95859051]
[1749421239469,9.90652214,2526.2,2526.1,3.95859051]
[1749421239832,9.90652214,2526.2,2525.9,3.95893691]
[1749421240034,8.964,2526.2,2526.1,3.95867146]
[1749421240240,9.9065432,2526.2,2526.1,3.95867146]
[1749421242068,9.8985432,2526.2,2526.1,3.95867146]
[1749421242278,1.45876667,2526.6,2526.5,3.95804472]
[1749421242279,2.63691935,2526.6,2526.5,3.95804472]
[1749421242461,11.8294737,2526.6,2526.5,3.95804472]
[1749421242649,1.60932102,2526.6,2526.5,3.95804472]
[1749421242836,1.60932102,2526.6,2526.5,8.0016868]
[1749421243035,1.60932102,2526.6,2526.5,3.95804472]
[1749421243340,0.66666667,2526.6,2526.5,3.95804472]
[1749421243531,1.60930432,2526.6,2526.3,3.95829787]
[1749421243734,0.66666667,2526.6,2526.5,3.95804472]
[1749421244075,1.60930994,2526.6,2526.5,3.95804472]
[1749421244973,1.60920386,2526.6,2526.5,3.95804472]
[1749421245274,7.68966667,2526.6,2526.5,3.95804472]
[1749421245452,7.68966667,2526.6,2526.5,5.15403172]
[1749421246361,7.68966667,2526.6,2526.5,3.95804472]
[1749421248272,0.66666667,2526.6,2526.5,3.95804472]
[1749421248449,7.68766667,2526.6,2526.5,3.95804472]
[1749421249156,7.68666667,2526.6,2526.5,3.95804472]
[1749421251545,8.43946667,2526.6,2526.5,3.95804472]
[1749421253149,8.43946667,2526.6,2526.3,3.95832902]
[1749421253356,8.43946667,2526.6,2526.3,16.0]
[1749421253641,8.43946667,2526.6,2526.4,3.95809496]
[1749421254982,8.43946667,2526.6,2526.5,3.95804472]
[1749421255384,9.38125627,2526.6,2526.5,3.95804472]
[1749421255687,9.38125627,2526.6,2526.3,3.95828187]
[1749421255982,8.43946667,2526.6,2526.4,3.95819358]
[1749421256487,7.7728,2526.6,2526.3,3.95827269]
[1749421256660,7.7728,2526.6,2526.4,3.95818283]
[1749421258164,7.7728,2526.6,2526.5,3.95804472]
[1749421258373,8.71463637,2526.6,2526.4,3.95809011]
[1749421258542,7.7728,2526.6,2526.3,3.95834972]
[1749421258746,7.7728,2526.6,2526.4,3.95805375]
[1749421259348,1.49185123,2526.5,2525.7,0.8204]
[1749421259600,0.94181082,2526.4,2526.2,3.95851188]
[1749421259753,7.011,2526.3,2526.2,3.95851188]
[1749421261793,7.95272775,2526.3,2526.2,3.95851188]
[1749421262007,7.95272463,2526.3,2526.2,3.95851188]
[1749421262491,7.011,2526.3,2526.2,3.95851188]
[1749421262992,0.55,2526.5,2526.4,3.95820139]
[1749421263293,8.86879154,2526.5,2526.4,3.95820139]
[1749421263850,8.50080361,2526.5,2526.4,3.95820139]
[1749421264073,8.50080361,2526.5,2526.3,3.9582954]
[1749421264275,7.559,2526.5,2526.4,3.95820139]
[1749421264570,8.86904347,2526.5,2526.4,3.95820139]
[1749421264773,8.50097742,2526.5,2526.4,3.95820139]
[1749421264986,8.86904779,2526.5,2526.3,3.95828612]
[1749421265190,1.31013143,2526.4,2526.3,3.95828612]
[1749421265556,0.94197742,2526.4,2526.3,3.95828612]
[1749421267601,1.31012133,2526.4,2526.3,3.95828612]
[1749421267814,0.94197742,2526.4,2526.3,3.95828612]
[1749421268594,1.31019393,2526.4,2526.3,3.95828612]
[1749421269414,1.3101942,2526.4,2526.3,3.95828612]
[1749421269615,0.94197742,2526.4,2525.9,0.7559]
[1749421269819,9.56,2526.5,2525.6,0.8211]
[1749421270123,0.7797,2526.2,2525.9,3.95895796]
[1749421270327,8.26355265,2526.1,2525.9,3.95895796]
[1749421270492,0.94252798,2526.0,2525.9,3.95895796]
[1749421272818,6.953,2526.1,2525.8,3.95911414]
[1749421272819,6.953,2526.1,2526.0,3.95882818]
[1749421273120,7.89490956,2526.1,2526.0,3.95882818]
[1749421281426,0.94190956,2526.1,2526.0,3.95882818]
[1749421281631,9.93790956,2526.1,2526.0,3.95882818]
[1749421281813,8.996,2526.1,2526.0,3.95882818]
[1749421282216,1.17717572,2526.5,2526.1,0.8051]
[1749421282522,9.93670758,2526.4,2526.3,3.95835807]
[1749421282723,2.001,2526.5,2526.4,3.95820139]
[1749421282926,9.9368661,2526.5,2526.4,3.95820139]
[1749421283327,9.93695534,2526.5,2526.4,3.95820139]
[1749421284296,7.93495534,2526.5,2526.4,3.95820139]
[1749421284725,0.94195534,2526.5,2526.4,3.95820139]
[1749421284927,7.93495534,2526.5,2526.4,3.95820139]
[1749421286853,7.93495534,2526.5,2526.3,3.95823296]
[1749421287050,8.80359553,2526.5,2526.1,3.95854311]
[1749421287363,0.94210952,2526.4,2526.2,3.9584988]
[1749421287565,0.94210952,2526.3,2526.2,3.9584988]
[1749421287742,9.93310952,2526.3,2526.2,3.9584988]
[1749421288144,1.17744418,2526.7,2526.6,3.95788807]
[1749421288339,9.932342,2526.7,2526.6,3.95788807]
[1749421288543,10.30045123,2526.7,2526.6,3.95788807]
[1749421288755,2.943342,2526.7,2526.6,3.95788807]
[1749421288960,10.30044822,2526.7,2526.6,3.95788807]
[1749421289279,2.943342,2526.7,2526.6,8.00153015]
[1749421289581,1.17744418,2526.9,2526.8,3.95757479]
[1749421289582,2.001,2526.9,2526.8,3.95757479]
[1749421289793,18.28244418,2527.2,2527.0,3.95726157]
[1749421290082,10.29941566,2527.1,2527.0,3.95726157]
[1749421290443,10.29905992,2527.1,2527.0,3.95726157]
[1749421290638,9.93127804,2527.1,2527.0,3.95726157]
[1749421291147,9.93027804,2527.1,2527.0,3.95726157]
[1749421291346,10.29805844,2527.1,2527.0,3.95726157]
[1749421291577,9.93027804,2527.1,2527.0,3.95726157]
[1749421291850,0.94227804,2527.1,2527.0,3.95726157]
[1749421292075,9.92927804,2527.1,2527.0,3.95726157]
[1749421295272,9.91127804,2527.1,2527.0,3.95726157]
[1749421295652,8.969,2527.1,2527.0,3.95726157]
[1749421295850,1.17744418,2527.5,2527.0,0.764]
[1749421296089,0.94087268,2527.7,2527.5,3.95647873]
[1749421296389,8.70298823,2527.6,2527.1,3.95701601]
[1749421296590,3.95671303,2527.4,2526.9,3.95741818]
[1749421296889,0.7802,2527.1,2526.6,3.95788807]
[1749421297101,6.982,2527.0,2526.5,0.764]
[1749421297595,6.982,2527.0,2526.8,3.95745512]
[1749421297945,6.982,2527.0,2526.9,3.95741818]
[1749421298151,6.982,2527.0,2526.8,3.95756381]
[1749421298850,6.982,2527.0,2526.7,3.95770203]
[1749421300193,6.982,2527.0,2526.7,3.95773142]
[1749421300378,6.982,2527.0,2526.8,3.95753549]
[1749421301546,6.982,2527.0,2526.3,3.95831809]
[1749421301547,6.982,2527.0,2526.7,3.95765688]
[1749421301752,0.8286,2526.9,2526.7,3.95765688]
[1749421303096,0.8286,2526.9,2526.8,3.95757479]
[1749421303295,7.532,2527.0,2526.9,3.95741818]
[1749421303594,6.982,2527.0,2526.9,3.95741818]
[1749421303827,7.92228988,2527.0,2526.9,3.95741818]
[1749421304386,6.982,2527.0,2526.9,3.95741818]
[1749421304588,7.92236675,2527.0,2526.9,3.95741818]
[1749421305011,7.92240568,2527.0,2526.9,3.95741818]
[1749421305732,8.29006263,2527.0,2526.9,3.95741818]
[1749421306203,8.290056,2527.0,2526.9,3.95741818]
[1749421306410,7.92240568,2527.0,2526.9,3.95741818]
[1749421306624,7.92240568,2527.0,2526.8,3.95748227]
[1749421306836,6.982,2527.0,2526.8,3.95748227]
[1749421307184,7.34965723,2527.0,2526.8,3.95748227]
[1749421308316,6.982,2527.0,2526.8,3.95748227]
[1749421309218,0.36817532,2526.9,2526.8,3.95748227]
[1749421309619,1.30965445,2526.9,2526.8,3.95748227]
[1749421309811,1.30970779,2526.9,2526.8,3.95748227]
[1749421309989,1.30971204,2526.9,2526.8,3.95748227]
[1749421310315,0.94147913,2526.9,2526.8,3.95748227]
[1749421310518,0.94176501,2526.9,2526.8,3.95748227]
[1749421310719,1.30999983,2526.9,2526.8,3.95748227]
[1749421310922,0.94176501,2526.9,2526.8,3.95748227]
[1749421311125,1.30999886,2526.9,2526.8,3.95748227]
[1749421311791,1.30999149,2526.9,2526.8,3.95748227]
[1749421312127,0.94176501,2526.9,2526.8,3.95748227]
[1749421312807,1.30999687,2526.9,2526.8,3.95748227]
[1749421313016,1.31013681,2526.9,2526.8,3.95748227]
[1749421313187,1.31013681,2526.9,2526.7,3.95764336]
[1749421313383,0.94176501,2526.8,2526.7,3.95764336]
[1749421313981,1.31018896,2526.8,2526.7,3.95764336]
[1749421314187,0.94176501,2526.8,2526.7,3.95764336]
[1749421314619,1.31019473,2526.8,2526.7,3.95764336]
[1749421314826,1.31019071,2526.8,2526.7,3.95764336]
[1749421315332,0.94176501,2526.8,2526.7,3.95764336]
[1749421316498,1.31019205,2526.8,2526.7,3.95764336]
[1749421316913,8.27653984,2526.8,2526.7,3.95764336]
[1749421317143,8.27654132,2526.8,2526.7,3.95764336]
[1749421317452,8.27654409,2526.8,2526.7,3.95764336]
[1749421317648,7.90776501,2526.8,2526.7,3.95764336]
[1749421317934,8.27654388,2526.8,2526.7,3.95764336]
[1749421318131,7.90676501,2526.8,2526.7,3.95764336]
[1749421318336,8.27554375,2526.8,2526.7,3.95764336]